bitfinex/quotes_BTCUSD_20240617
["timestamp","ask_amount","ask_price","bid_price","bid_amount"]
[1718651496033,0.49378308,66870.0,66869.0,0.45756601]
[1718651496240,0.001,66870.0,66869.0,0.75765801]
[1718651496489,0.001,66870.0,66869.0,1.07675001]
[1718651496644,0.001,66870.0,66869.0,0.75765801]
[1718651497674,0.001,66870.0,66869.0,0.77765801]
[1718651497874,0.004,66870.0,66869.0,0.77765801]
[1718651498086,0.1747,66873.0,66872.0,0.747695]
[1718651498432,0.1747,66873.0,66872.0,0.45754107]
[1718651499201,0.1747,66873.0,66872.0,0.75661907]
[1718651499347,0.1757,66873.0,66872.0,0.45854107]
[1718651499556,0.1757,66873.0,66872.0,0.45954107]
[1718651500290,0.1757,66873.0,66872.0,0.75861907]
[1718651500459,0.001,66873.0,66872.0,0.75861907]
[1718651500986,0.001,66873.0,66872.0,0.45954107]
[1718651501571,0.001,66873.0,66872.0,0.75861907]
[1718651501771,0.001,66873.0,66872.0,0.45954107]
[1718651502786,0.001,66873.0,66872.0,0.01092407]
[1718651503862,0.001,66873.0,66872.0,0.01082407]
[1718651505530,0.001,66873.0,66872.0,0.002]
[1718651505531,1.52831724,66873.0,66872.0,0.002]
[1718651505735,1.43654324,66873.0,66872.0,0.002]
[1718651506137,1.16046924,66873.0,66872.0,0.002]
[1718651506344,0.68885824,66873.0,66872.0,0.002]
[1718651506972,0.68885824,66873.0,66872.0,0.01181822]
[1718651507784,0.68885824,66873.0,66872.0,0.16135722]
[1718651508007,0.68885824,66873.0,66872.0,0.75951322]
[1718651508393,0.68885824,66873.0,66872.0,0.46043522]
[1718651508787,0.3785,66873.0,66872.0,0.46043522]
[1718651509188,0.68886022,66873.0,66872.0,0.46043522]
[1718651509391,0.3785,66873.0,66872.0,0.46043522]
[1718651510252,0.68886199,66873.0,66872.0,0.46043522]
[1718651512104,0.3785,66873.0,66872.0,0.46043522]
[1718651513450,0.68886224,66873.0,66872.0,0.46043522]
[1718651513860,0.3785,66873.0,66872.0,0.46043522]
[1718651514298,0.68886258,66873.0,66872.0,0.16135722]
[1718651516233,0.3785,66873.0,66872.0,0.16135722]
[1718651517437,0.3785,66873.0,66872.0,0.46043522]
[1718651518217,0.001,66873.0,66872.0,1.99262222]
[1718651518433,0.001,66873.0,66872.0,2.77443469]
[1718651518694,1e-06,66873.0,66872.0,3.29151497]
[1718651518892,1e-06,66873.0,66872.0,3.38367169]
[1718651519098,1e-06,66873.0,66872.0,3.36567104]
[1718651519299,0.00855,66881.0,66880.0,2.205236]
[1718651519500,0.00855,66881.0,66880.0,2.95421944]
[1718651519712,0.00855,66881.0,66880.0,3.0275593]
[1718651519978,0.00855,66881.0,66880.0,3.0775593]
[1718651520190,0.00855,66881.0,66880.0,3.1775593]
[1718651520784,0.00855,66881.0,66880.0,3.1915593]
[1718651520999,0.00855,66881.0,66880.0,1.90153207]
[1718651521777,0.00855,66881.0,66880.0,1.91553207]
[1718651522183,0.00855,66881.0,66880.0,1.90153207]
[1718651522406,0.00855,66881.0,66880.0,1.88753207]
[1718651522810,0.00855,66881.0,66880.0,1.90153207]
[1718651523014,0.00855,66881.0,66880.0,2.21457507]
[1718651523213,0.00855,66881.0,66880.0,1.90153207]
[1718651523782,0.00855,66881.0,66880.0,1.91553207]
[1718651523957,0.00855,66881.0,66880.0,2.20057507]
[1718651524512,0.00855,66881.0,66880.0,1.90153207]
[1718651525141,0.00855,66881.0,66880.0,2.20057507]
[1718651525551,0.00855,66881.0,66880.0,2.21457507]
[1718651526168,0.00855,66881.0,66880.0,1.91553207]
[1718651526702,0.00855,66888.0,66880.0,1.76601107]
[1718651526916,0.00855,66900.0,66897.0,0.767417]
[1718651527123,0.00855,66900.0,66897.0,1.76051426]
[1718651527244,0.00855,66900.0,66897.0,2.28819689]
[1718651528337,0.00855,66900.0,66897.0,2.16409551]
[1718651528526,0.00855,66900.0,66897.0,2.33482042]
[1718651528961,0.00855,66900.0,66897.0,2.18282042]
[1718651529108,0.00855,66900.0,66897.0,1.71855342]
[1718651529727,0.00855,66900.0,66897.0,1.61855342]
[1718651529995,0.00855,66900.0,66897.0,1.49449495]
[1718651530346,0.00855,66900.0,66897.0,1.50849495]
[1718651530571,0.00855,66900.0,66897.0,1.49449495]
[1718651530785,0.00855,66900.0,66897.0,2.10796195]
[1718651530990,0.00855,66900.0,66897.0,2.25796195]
[1718651531557,0.01939551,66928.0,66907.0,0.02]
[1718651531780,0.54583072,66933.0,66927.0,0.149415]
[1718651531781,0.07593072,66933.0,66927.0,0.149415]
[1718651531998,0.023,66932.0,66928.0,0.149412]
[1718651532241,0.023,66934.0,66929.0,0.14941]
[1718651532435,0.023,66934.0,66926.0,0.149417]
[1718651532645,0.023,66934.0,66932.0,0.149404]
[1718651532864,0.023,66934.0,66930.0,0.30755358]
[1718651532865,0.023,66934.0,66922.0,0.298854]
[1718651533094,0.149408,66931.0,66924.0,0.149421]
[1718651533429,0.07593072,66928.0,66923.0,0.29885]
[1718651533632,0.07593072,66928.0,66924.0,0.149422]
[1718651535191,0.07593072,66928.0,66923.0,0.29885]
[1718651535192,0.07593072,66928.0,66925.0,0.14942]
[1718651535409,0.273401,66934.0,66923.0,0.001]
[1718651535719,0.273401,66934.0,66920.0,0.298861]
[1718651535720,0.149405,66932.0,66925.0,0.149419]
[1718651535911,0.123,66934.0,66926.0,0.149416]
[1718651536112,0.001,66928.0,66926.0,0.149416]
[1718651536315,0.001,66928.0,66924.0,0.001]
[1718651536542,0.149435,66919.0,66912.0,0.448346]
[1718651536721,0.47813072,66927.0,66913.0,0.06010749]
[1718651536863,0.149425,66924.0,66923.0,0.001]
[1718651537222,0.023,66926.0,66920.0,0.149431]
[1718651537419,0.023,66926.0,66919.0,0.149433]
[1718651537618,0.149421,66925.0,66919.0,0.149433]
[1718651538341,0.149421,66925.0,66923.0,0.001]
[1718651538539,0.448269,66924.0,66923.0,0.001]
[1718651538769,0.149428,66922.0,66916.0,0.14944]
[1718651538881,0.149423,66924.0,66919.0,0.001]
[1718651539538,0.149423,66924.0,66920.0,0.00873758]
[1718651539777,0.149427,66923.0,66920.0,0.00873758]
[1718651539981,0.747147,66921.0,66920.0,0.00873758]
[1718651540207,0.630088,66921.0,66920.0,0.00873758]
[1718651540378,0.74716,66920.0,66919.0,0.001]
[1718651540611,0.02,66917.0,66897.0,0.04666644]
[1718651540814,0.02,66917.0,66899.0,0.45558432]
[1718651540815,0.219,66906.0,66899.0,0.45558432]
[1718651540990,0.219,66906.0,66895.0,0.298975]
[1718651541288,0.219,66906.0,66895.0,0.15272888]
[1718651541289,0.149472,66902.0,66895.0,0.15272888]
[1718651541505,0.517929,66906.0,66886.0,0.2089]
[1718651541506,0.02,66904.0,66886.0,0.2089]
[1718651541708,0.14948,66899.0,66887.0,0.15272888]
[1718651541913,0.298942,66903.0,66897.0,0.014]
[1718651542121,0.149476,66901.0,66897.0,0.014]
[1718651542524,0.149477,66900.0,66893.0,0.14949]
[1718651542705,0.1675,66905.0,66888.0,0.02]
[1718651542883,0.1675,66905.0,66901.0,0.298948]
[1718651543086,0.1675,66905.0,66904.0,0.448402]
[1718651543287,0.1675,66905.0,66903.0,0.14947]
[1718651543490,0.1675,66905.0,66901.0,0.298946]
[1718651543491,0.1675,66905.0,66900.0,0.149476]
[1718651543688,0.1675,66905.0,66901.0,0.149472]
[1718651544831,0.1675,66905.0,66902.0,0.00869533]
[1718651545022,0.14947,66903.0,66885.0,0.02]
[1718651545240,0.298935,66904.0,66894.0,0.29898]
[1718651545442,0.149473,66902.0,66896.0,0.149485]
[1718651545639,0.149475,66901.0,66883.0,0.02]
[1718651545814,0.747339,66904.0,66903.0,0.001]
[1718651546028,0.770339,66904.0,66903.0,0.001]
[1718651546298,0.149478,66900.0,66892.0,0.298986]
[1718651546465,0.149475,66901.0,66885.0,0.02]
[1718651546800,0.321935,66904.0,66894.0,0.150489]
[1718651546801,0.355777,66900.0,66894.0,0.150489]
[1718651546940,0.355777,66900.0,66894.0,0.149489]
[1718651547663,0.1802,66897.0,66891.0,0.149496]
[1718651547878,0.1802,66897.0,66883.0,0.01]
[1718651548079,0.02,66896.0,66884.0,0.15272888]
[1718651548423,0.02,66896.0,66877.0,0.1816]
[1718651548424,0.02,66889.0,66872.0,0.000935]
[1718651548631,0.07593072,66894.0,66873.0,0.15272888]
[1718651548632,0.299054,66878.0,66873.0,0.15272888]
[1718651548843,0.149531,66876.0,66873.0,0.15272888]
[1718651549053,0.299027,66884.0,66872.0,0.300013]
[1718651549226,0.299027,66884.0,66872.0,0.15366388]
[1718651549227,0.149526,66878.0,66872.0,0.15366388]
[1718651549431,0.149517,66882.0,66874.0,0.299069]
[1718651549641,0.14952,66881.0,66874.0,0.299069]
[1718651549853,0.149517,66882.0,66875.0,0.14953]
[1718651550430,0.299041,66881.0,66872.0,0.000935]
[1718651550634,0.299058,66877.0,66872.0,0.001935]
[1718651550838,0.29905,66879.0,66872.0,0.000935]
[1718651551068,0.448611,66873.0,66872.0,0.000935]
[1718651551277,0.149537,66873.0,66872.0,0.000935]
[1718651551485,0.448611,66873.0,66872.0,0.000935]
[1718651551685,0.149534,66875.0,66872.0,0.001935]
[1718651551886,0.475455,66878.0,66872.0,0.001935]
[1718651551887,0.299056,66877.0,66872.0,0.001935]
[1718651552285,0.149532,66876.0,66872.0,0.000935]
[1718651552509,0.149534,66875.0,66872.0,0.000935]
[1718651552715,0.014,66873.0,66872.0,0.001935]
[1718651553053,0.462611,66873.0,66872.0,0.001935]
[1718651553251,0.761685,66873.0,66872.0,0.001935]
[1718651553470,0.462611,66873.0,66872.0,0.001935]
[1718651554472,0.476611,66873.0,66872.0,0.001935]
[1718651554839,0.476611,66873.0,66872.0,0.000935]
[1718651554840,0.781685,66873.0,66872.0,0.000935]
[1718651555042,1.1243435,66873.0,66872.0,0.000935]
[1718651555166,1.329359,66873.0,66872.0,0.001935]
[1718651555787,1.329359,66873.0,66872.0,0.000935]
[1718651555956,1.010285,66873.0,66872.0,0.001935]
[1718651556167,1.044285,66873.0,66872.0,0.001935]
[1718651556577,1.343359,66873.0,66872.0,0.001935]
[1718651557009,1.47001079,66873.0,66872.0,0.001935]
[1718651557216,1.63901079,66873.0,66872.0,0.001935]
[1718651557426,3.31947367,66873.0,66872.0,0.001935]
[1718651557634,3.46947367,66873.0,66872.0,0.001935]
[1718651557836,3.85991025,66873.0,66872.0,0.001935]
[1718651558505,3.84591025,66873.0,66872.0,0.000935]
[1718651558913,3.85991025,66873.0,66872.0,0.001935]
[1718651559342,3.84591025,66873.0,66872.0,0.000935]
[1718651559783,3.85991025,66873.0,66872.0,0.001935]
[1718651560004,3.84591025,66873.0,66872.0,0.001935]
[1718651560440,3.85991025,66873.0,66872.0,0.001935]
[1718651560644,3.84591025,66873.0,66872.0,0.001935]
[1718651561075,3.85991025,66873.0,66872.0,0.001935]
[1718651561288,3.54947367,66873.0,66872.0,0.001935]
[1718651562806,3.76197367,66873.0,66872.0,0.001935]
[1718651564608,3.66197367,66873.0,66872.0,0.001935]
[1718651564830,1.93495788,66873.0,66872.0,0.001935]
[1718651565061,2.4699606,66873.0,66872.0,0.001935]
[1718651565262,2.6820806,66873.0,66872.0,0.001935]
[1718651566234,2.4695806,66873.0,66872.0,0.001935]
[1718651566440,2.83479316,66873.0,66872.0,0.001935]
[1718651568753,2.1708866,66873.0,66872.0,0.001935]
[1718651570314,2.48133017,66873.0,66872.0,0.001935]
[1718651570715,1.9583866,66873.0,66872.0,0.001935]
[1718651570949,2.1708866,66873.0,66872.0,0.001935]
[1718651571292,2.4813291,66873.0,66872.0,0.001935]
[1718651572333,2.45790038,66873.0,66872.0,0.001935]
[1718651574813,2.75697438,66873.0,66872.0,0.001935]
[1718651576092,2.90697438,66873.0,66872.0,0.001935]
[1718651576294,3.28657138,66873.0,66872.0,0.001935]
[1718651577575,2.97612888,66873.0,66872.0,0.001935]
[1718651577810,3.63472857,66873.0,66872.0,0.001935]
[1718651578016,3.33931477,66873.0,66872.0,0.001935]
[1718651578435,3.68802609,66873.0,66872.0,0.001935]
[1718651578939,2.24543121,66873.0,66872.0,0.001935]
[1718651579164,2.45793121,66873.0,66872.0,0.001935]
[1718651580425,2.75700521,66873.0,66872.0,0.001935]
[1718651580635,3.05940221,66873.0,66872.0,0.001935]
[1718651580842,3.15940221,66873.0,66872.0,0.001935]
[1718651581052,3.21211477,66873.0,66872.0,0.001935]
[1718651581279,3.31211477,66873.0,66872.0,0.001935]
[1718651581480,3.01780563,66873.0,66872.0,0.001935]
[1718651581728,3.32826571,66873.0,66872.0,0.001935]
[1718651582172,3.67458224,66873.0,66872.0,0.001935]
[1718651582329,3.62245972,66873.0,66872.0,0.001935]
[1718651582756,3.46974716,66873.0,66872.0,0.001935]
[1718651584256,3.00813449,66873.0,66872.0,0.001935]
[1718651584405,2.66181796,66873.0,66872.0,0.001935]
[1718651585199,2.67686307,66873.0,66872.0,0.001935]
[1718651585585,2.72472916,66873.0,66872.0,0.001935]
[1718651585815,2.97744172,66873.0,66872.0,0.001935]
[1718651586228,3.27651572,66873.0,66872.0,0.001935]
[1718651586444,2.97744172,66873.0,66872.0,0.001935]
[1718651586660,2.97744172,66873.0,66869.0,0.000935]
[1718651586661,1.306674,66870.0,66869.0,0.000935]
[1718651586877,2.33377552,66870.0,66869.0,0.000935]
[1718651587111,3.46416684,66870.0,66869.0,0.000935]
[1718651587317,2.73618039,66870.0,66869.0,0.000935]
[1718651587518,3.14245906,66870.0,66869.0,0.000935]
[1718651587968,3.04245906,66870.0,66869.0,0.000935]
[1718651588405,3.05645906,66870.0,66869.0,0.000935]
[1718651588875,3.07045906,66870.0,66869.0,0.000935]
[1718651589313,2.9177465,66870.0,66869.0,0.000935]
[1718651589517,2.8127615,66870.0,66869.0,0.000935]
[1718651590578,2.7627615,66870.0,66869.0,0.000935]
[1718651591071,1.51096554,66870.0,66869.0,0.000935]
[1718651591274,1.79454987,66870.0,66869.0,0.000935]
[1718651591461,1.96726243,66870.0,66869.0,0.000935]
[1718651591696,2.26634943,66870.0,66869.0,0.000935]
[1718651591925,2.17976243,66870.0,66869.0,0.000935]
[1718651592321,2.19525142,66870.0,66869.0,0.000935]
[1718651593494,1.49546287,66870.0,66869.0,0.000935]
[1718651593725,1.51098288,66870.0,66869.0,0.000935]
[1718651594030,1.81006988,66870.0,66869.0,0.000935]
[1718651594147,1.81424424,66870.0,66869.0,0.000935]
[1718651596805,1.74471507,66870.0,66869.0,0.000935]
[1718651597091,0.50218219,66870.0,66869.0,0.000935]
[1718651597307,0.33845303,66870.0,66869.0,0.375635]
[1718651597698,0.33845303,66870.0,66869.0,0.38347426]
[1718651597906,0.48799603,66870.0,66869.0,0.38347426]
[1718651598084,0.33845303,66870.0,66869.0,0.38347426]
[1718651598298,0.33845303,66870.0,66869.0,0.57136769]
[1718651598502,0.33845303,66870.0,66869.0,0.53302026]
[1718651598687,0.33845303,66870.0,66869.0,0.38347426]
[1718651599093,0.32445303,66870.0,66869.0,0.38347426]
[1718651599572,0.33845303,66870.0,66869.0,0.53302026]
[1718651599744,0.31045303,66870.0,66869.0,0.83211226]
[1718651599901,0.31039041,66871.0,66869.0,0.68256626]
[1718651600254,0.014,66870.0,66869.0,0.83211226]
[1718651600466,0.32439041,66870.0,66869.0,0.38347426]
[1718651600687,0.33839041,66870.0,66869.0,0.38347426]
[1718651600893,0.77302041,66870.0,66869.0,0.38347426]
[1718651601149,0.77304374,66870.0,66869.0,0.375635]
[1718651601359,0.75904374,66870.0,66869.0,0.38347426]
[1718651601529,0.77304374,66870.0,66869.0,0.38347426]
[1718651602593,1.17942781,66870.0,66869.0,0.00877426]
[1718651602799,1.22242781,66870.0,66869.0,0.00877426]
[1718651603008,1.94785974,66870.0,66869.0,0.00877426]
[1718651603212,1.94785974,66870.0,66869.0,0.000935]
[1718651603213,2.01801876,66870.0,66869.0,0.000935]
[1718651603562,2.04030037,66870.0,66869.0,0.000935]
[1718651603956,2.054899,66870.0,66869.0,0.000935]
[1718651604091,1.735812,66870.0,66869.0,0.000935]
[1718651604466,0.97550219,66870.0,66869.0,0.174835]
[1718651604679,1.36370374,66870.0,66869.0,0.174835]
[1718651604869,1.22671177,66870.0,66869.0,0.18267318]
[1718651605067,1.22671177,66870.0,66869.0,0.174835]
[1718651605269,1.29355067,66870.0,66869.0,0.174835]
[1718651605685,0.91629803,66870.0,66869.0,0.174835]
[1718651605884,1.29357316,66870.0,66869.0,0.000935]
[1718651606140,1.59266016,66870.0,66869.0,0.000935]
[1718651606529,1.29357316,66870.0,66869.0,0.000935]
[1718651606734,1.22673371,66870.0,66869.0,0.000935]
[1718651607173,1.52582071,66870.0,66869.0,0.000935]
[1718651607376,1.22673371,66870.0,66869.0,0.000935]
[1718651608028,0.92764671,66870.0,66869.0,0.000935]
[1718651608138,1.22673371,66870.0,66869.0,0.000935]
[1718651608747,0.52286008,66870.0,66869.0,0.000935]
[1718651608991,0.48299906,66870.0,66869.0,0.00877318]
[1718651609195,0.58797868,66870.0,66869.0,0.000935]
[1718651609395,0.43843568,66870.0,66869.0,0.000935]
[1718651609777,0.43843568,66870.0,66869.0,0.00876396]
[1718651610181,0.33843568,66870.0,66869.0,0.00876396]
[1718651610449,0.78706568,66870.0,66869.0,0.00876396]
[1718651610777,0.78706568,66870.0,66869.0,0.000935]
[1718651611385,1.74057982,66870.0,66869.0,0.000935]
[1718651611595,1.76057982,66870.0,66869.0,0.000935]
[1718651611847,1.7593209,66870.0,66869.0,0.000935]
[1718651612063,1.7793209,66870.0,66869.0,0.000935]
[1718651612323,1.84616427,66870.0,66869.0,0.00088249]
[1718651612524,2.29798015,66870.0,66869.0,0.00088249]
[1718651612725,2.48282178,66870.0,66869.0,0.00088249]
[1718651612944,2.5387051,66870.0,66869.0,0.00088249]
[1718651613147,2.4814051,66870.0,66869.0,0.00088249]
[1718651613345,2.50367741,66870.0,66869.0,0.00088249]
[1718651613578,2.59348741,66870.0,66869.0,0.00088249]
[1718651613778,3.25686592,66870.0,66869.0,0.00088249]
[1718651613949,2.84639206,66870.0,66869.0,0.00088249]
[1718651614152,2.88118755,66870.0,66869.0,0.00088249]
[1718651614362,3.14547906,66870.0,66869.0,0.00088249]
[1718651614563,3.24547906,66870.0,66869.0,0.00088249]
[1718651615210,3.13188759,66870.0,66869.0,0.00088249]
[1718651615410,2.76759608,66870.0,66869.0,0.00088249]
[1718651615615,3.08068308,66870.0,66869.0,0.00088249]
[1718651615814,2.88159608,66870.0,66869.0,0.00088249]
[1718651616064,3.70717642,66870.0,66869.0,0.00088249]
[1718651616250,3.89683023,66870.0,66869.0,0.00088249]
[1718651616446,3.89680608,66870.0,66869.0,0.00088249]
[1718651616652,3.7771414,66870.0,66869.0,0.00088249]
[1718651616890,3.77757617,66870.0,66869.0,0.00088249]
[1718651617213,3.81123116,66870.0,66869.0,0.00088249]
[1718651617427,3.75744095,66870.0,66869.0,0.00088249]
[1718651617638,3.85744095,66870.0,66869.0,0.00088249]
[1718651617839,3.75744095,66870.0,66869.0,0.00088249]
[1718651618238,0.149588,66850.0,66849.0,0.1634]
[1718651618445,0.46002368,66850.0,66849.0,0.1634]
[1718651618658,0.46002368,66850.0,66849.0,0.17123943]
[1718651618659,0.75920068,66850.0,66849.0,0.17123943]
[1718651619097,1.05837768,66850.0,66849.0,0.17123943]
[1718651619331,1.05837768,66850.0,66849.0,0.1634]
[1718651619759,1.06037768,66850.0,66849.0,0.1644]
[1718651620212,0.31243568,66850.0,66849.0,0.68910172]
[1718651620418,0.002,66850.0,66849.0,0.88650172]
[1718651620624,0.002,66850.0,66849.0,0.89435797]
[1718651621265,0.002,66850.0,66849.0,0.81842725]
[1718651621468,0.002,66850.0,66849.0,0.51924625]
[1718651621890,0.002,66850.0,66849.0,0.83842725]
[1718651622106,0.4699,66865.0,66857.0,0.02]
[1718651622302,0.04540865,66872.0,66869.0,0.149545]
[1718651622502,0.04540865,66872.0,66870.0,0.149541]
[1718651622503,0.31042348,66871.0,66870.0,0.149541]
[1718651622706,0.00085,66872.0,66871.0,0.149541]
[1718651622944,0.00085,66872.0,66871.0,0.817024]
[1718651623274,0.00085,66872.0,66871.0,0.89112709]
[1718651623915,0.00085,66872.0,66871.0,0.87112709]
[1718651624231,0.00085,66872.0,66871.0,0.89112709]
[1718651625027,0.00085,66872.0,66871.0,1.19021009]
[1718651625234,0.01385,66872.0,66871.0,0.89212709]
[1718651625440,0.01385,66872.0,66871.0,1.17121009]
[1718651625650,0.01385,66872.0,66871.0,0.87212709]
[1718651626054,0.01385,66872.0,66871.0,0.89212709]
[1718651626502,0.02585,66872.0,66871.0,0.89312709]
[1718651627003,0.02585,66872.0,66871.0,1.14534729]
[1718651627203,0.02585,66872.0,66871.0,0.84626429]
[1718651627854,0.02585,66872.0,66871.0,0.82626429]
[1718651628229,0.02585,66872.0,66871.0,1.12534729]
[1718651628437,0.02585,66872.0,66871.0,0.82626429]
[1718651628635,0.02585,66872.0,66871.0,1.12534729]
[1718651629106,0.02585,66872.0,66871.0,0.52718129]
[1718651629525,0.02585,66872.0,66871.0,0.82626429]
[1718651631578,0.02585,66872.0,66871.0,0.52718129]
[1718651633373,0.02585,66872.0,66871.0,0.37764029]
[1718651634006,0.175389,66872.0,66871.0,0.20074029]
[1718651634288,0.175389,66872.0,66871.0,0.00924029]
[1718651634289,0.02585,66872.0,66871.0,0.00924029]
[1718651634645,0.474467,66872.0,66871.0,0.00924029]
[1718651634844,0.773545,66872.0,66871.0,0.00924029]
[1718651635446,0.474467,66872.0,66871.0,0.00924029]
[1718651635835,0.773545,66872.0,66871.0,0.00924029]
[1718651636235,0.02585,66872.0,66871.0,0.002]
[1718651636441,0.02585,66872.0,66871.0,0.15931022]
[1718651636646,0.02585,66872.0,66871.0,0.355]
[1718651636851,0.02585,66872.0,66871.0,0.36276922]
[1718651637130,0.474467,66872.0,66871.0,0.36276922]
[1718651637686,0.02585,66872.0,66871.0,0.36276922]
[1718651638214,0.773545,66872.0,66871.0,0.36276922]
[1718651638449,0.175389,66872.0,66871.0,0.36276922]
[1718651638647,0.02585,66872.0,66871.0,0.00976922]
[1718651639073,0.474467,66872.0,66871.0,0.00976922]
[1718651639272,0.474467,66872.0,66871.0,0.002]
[1718651639501,0.175389,66872.0,66871.0,0.002]
[1718651639655,0.474467,66872.0,66871.0,0.002]
[1718651639868,0.474467,66872.0,66871.0,0.00976922]
[1718651640069,0.474467,66872.0,66871.0,0.002]
[1718651640474,0.773545,66872.0,66871.0,0.002]
[1718651641256,1.76961268,66872.0,66871.0,0.002]
[1718651641440,2.07091459,66872.0,66871.0,0.002]
[1718651641869,1.77183659,66872.0,66871.0,0.002]
[1718651642462,1.75183659,66872.0,66871.0,0.002]
[1718651642681,1.77183659,66872.0,66871.0,0.002]
[1718651642875,1.97183659,66872.0,66871.0,0.002]
[1718651643082,2.10747254,66872.0,66871.0,0.001]
[1718651643576,2.12147254,66872.0,66871.0,0.001]
[1718651643787,2.42055054,66872.0,66871.0,0.001]
[1718651644114,0.169543,66870.0,66869.0,0.000935]
[1718651644491,1.601391,66870.0,66869.0,0.000935]
[1718651644691,1.91181115,66870.0,66869.0,0.000935]
[1718651645117,1.61272415,66870.0,66869.0,0.000935]
[1718651646328,1.76543671,66870.0,66869.0,0.000935]
[1718651646538,1.77943671,66870.0,66869.0,0.000935]
[1718651648147,1.75943671,66870.0,66869.0,0.000935]
[1718651649249,0.32442015,66870.0,66869.0,0.449573]
[1718651649458,0.028,66870.0,66869.0,0.783773]
[1718651649667,0.028,66870.0,66869.0,0.79095126]
[1718651649881,0.028,66870.0,66869.0,0.34231326]
[1718651652488,0.028,66870.0,66869.0,0.49185926]
[1718651652699,0.028,66870.0,66869.0,0.34231326]
[1718651653314,0.028,66870.0,66869.0,0.79095126]
[1718651653503,0.028,66870.0,66869.0,0.81095126]
[1718651654357,0.028,66870.0,66869.0,0.34231326]
[1718651654482,0.028,66870.0,66869.0,0.49185926]
[1718651655266,0.028,66870.0,66869.0,0.34231326]
[1718651655630,0.177543,66870.0,66869.0,0.34231326]
[1718651655885,0.47663,66870.0,66869.0,0.34231326]
[1718651656140,0.028,66870.0,66869.0,0.34231326]
[1718651656615,0.028,66870.0,66869.0,0.51185926]
[1718651656847,0.028,66870.0,66869.0,1.11004326]
[1718651657314,0.028,66870.0,66869.0,0.81095126]
[1718651657550,0.028,66870.0,66869.0,0.51185926]
[1718651658350,0.028,66870.0,66869.0,0.81095126]
[1718651658587,0.028,66870.0,66869.0,1.11004326]
[1718651658815,0.028,66870.0,66869.0,1.40913526]
[1718651659320,0.028,66870.0,66869.0,0.79095126]
[1718651659552,0.028,66870.0,66869.0,0.81095126]
[1718651660555,0.02886,66870.0,66869.0,0.79095126]
[1718651666769,0.02886,66870.0,66869.0,0.81095126]
[1718651667180,0.02886,66870.0,66869.0,1.11004326]
[1718651670050,0.02886,66870.0,66869.0,1.56186414]
[1718651670459,0.02886,66870.0,66869.0,1.68599654]
[1718651670715,0.02886,66870.0,66869.0,1.68599387]
[1718651671358,0.00086,66870.0,66869.0,1.68599387]
[1718651671608,0.01186,66870.0,66869.0,1.68599387]
[1718651671869,0.02386,66870.0,66869.0,1.81070643]
[1718651672128,0.02386,66870.0,66869.0,1.68599387]
[1718651672799,0.02386,66870.0,66869.0,1.78799387]
[1718651673037,0.02386,66870.0,66869.0,1.68599387]
[1718651673237,0.02386,66870.0,66869.0,1.78799387]
[1718651673645,0.02386,66870.0,66869.0,1.68599387]
[1718651675285,0.02386,66870.0,66869.0,1.78799387]
[1718651675694,0.02386,66870.0,66869.0,1.68599387]
[1718651677465,0.02386,66870.0,66869.0,1.78799387]
[1718651677669,0.02386,66870.0,66869.0,2.08708587]
[1718651678351,0.02386,66870.0,66869.0,1.78799387]
[1718651678762,0.02386,66870.0,66869.0,2.08708587]
[1718651680521,0.02386,66870.0,66869.0,1.68599387]
[1718651680892,0.02386,66870.0,66869.0,1.78799387]
[1718651681464,0.02386,66870.0,66869.0,2.17218587]
[1718651681663,0.02386,66870.0,66869.0,1.77109387]
[1718651685194,0.01886,66870.0,66869.0,2.17218096]
[1718651685633,0.01886,66870.0,66869.0,1.77108896]
[1718651691657,0.01886,66870.0,66869.0,0.13223808]
[1718651691867,0.70019,66870.0,66869.0,0.00811326]
[1718651692086,0.16646,66870.0,66869.0,0.00811326]
[1718651692287,0.61509,66870.0,66869.0,0.000935]
[1718651692485,0.9263304,66870.0,66869.0,0.000935]
[1718651692665,0.6272434,66870.0,66869.0,0.000935]
[1718651692966,0.6152434,66870.0,66869.0,0.000935]
[1718651693238,0.304863,66870.0,66869.0,0.000935]
[1718651693911,0.60395,66870.0,66869.0,0.000935]
[1718651694116,0.59709,66870.0,66869.0,0.000935]
[1718651694525,0.62509,66870.0,66869.0,0.000935]
[1718651694852,0.61109,66870.0,66869.0,0.000935]
[1718651695263,0.62509,66870.0,66869.0,0.000935]
[1718651696699,0.924177,66870.0,66869.0,0.000935]
[1718651696899,1.23457452,66870.0,66869.0,0.000935]
[1718651698404,2.02369224,66870.0,66869.0,0.000935]
[1718651699243,2.06221952,66870.0,66869.0,0.000935]
[1718651699680,2.08521952,66870.0,66869.0,0.000935]
[1718651699906,2.0092888,66870.0,66869.0,0.000935]
[1718651700137,1.9752888,66870.0,66869.0,0.000935]
[1718651700351,1.9812888,66870.0,66869.0,0.000935]
[1718651700561,2.53310468,66870.0,66869.0,0.000935]
[1718651700814,2.68407039,66870.0,66869.0,0.000935]
[1718651701020,2.68407039,66870.0,66850.0,0.000946]
[1718651701021,1.382602,66851.0,66850.0,0.000946]
[1718651701381,1.08343,66851.0,66850.0,0.000946]
[1718651702019,1.69309815,66851.0,66850.0,0.000946]
[1718651702428,1.40692615,66851.0,66850.0,0.000946]
[1718651702788,1.42092615,66851.0,66850.0,0.000946]
[1718651703204,1.40692615,66851.0,66850.0,0.000946]
[1718651703408,1.50693625,66851.0,66850.0,0.000946]
[1718651703614,1.22176425,66851.0,66850.0,0.000946]
[1718651703819,0.299187,66848.0,66839.0,0.149611]
[1718651704021,0.762672,66851.0,66841.0,0.299213]
[1718651704164,0.1496,66845.0,66840.0,0.00692722]
[1718651704522,0.149596,66847.0,66841.0,0.00692722]
[1718651704650,0.299191,66847.0,66841.0,0.00692722]
[1718651704850,0.299191,66847.0,66834.0,0.07593072]
[1718651704851,0.4495,66851.0,66837.0,0.02]
[1718651705049,0.149594,66848.0,66840.0,0.448826]
[1718651705307,0.149594,66848.0,66841.0,0.00692722]